Cogmind - Beta 15 @@@ ROGUE MODE // 2025.06.10 @ 11:22:43 Player: puppuppit Result: Destroyed by 8D-63K(R) with Subdweller Machine Gun Performance ------------- Evolutions (0) 0 Regions Visited (2) 400 Robots Destroyed (44) 220 Value Destroyed (880) 880 Prototype IDs (2) 40 Alien Tech Used (0) 0 Bonus (0) 0 TOTAL SCORE: 1540 Bonus ------- None Cogmind --------- Core Integrity 0/250 Matter 47/300 Energy 240/250 System Corruption 8% Temperature Cool (0) Movement Treading (160) Location -10/Subcaves Parts ------- > --- POWER (1) -------- Ion Engine > --- PROPULSION (2) --- Light Treads Light Treads > --- UTILITY (2) ------ Large Storage Unit Light Armor Plating > --- WEAPON (2) ------- Mini Grenade Launcher Mini Grenade Launcher > --- INVENTORY (15) --- Subdweller Monowheel Improved Heat Sink Medium Storage Unit Subdweller Optics Subdweller Optics Light Armor Plating Light Armor Plating Light Assault Rifle Light Assault Rifle Light Assault Rifle Subdweller Machine Gun Subdweller Machine Gun Mini Grenade Launcher Dirty Datajack (20) Peak State ------------ > --- POWER ------------ Light Nuclear Core > --- PROPULSION ------- Light Treads Light Treads > --- UTILITY ---------- Large Storage Unit Hacking Suite > --- WEAPON ----------- Heavy EM Pulse Gun Heavy EM Pulse Gun > --- INVENTORY -------- Medium Matter Pod Improved Terrain Scanner Targeting Computer Targeting Computer Propulsion Shielding Heavy EM Pulse Gun Light Assault Rifle Mining Claw [Rating: 14] Favorites ----------- Power Ion Engine Engine Ion Engine Power Core Light Nuclear Core Propulsion Light Treads Treads Light Treads Utility Large Storage Unit Device Improved Terrain Scanner Storage Large Storage Unit Hackware Hacking Suite Protection Light Armor Plating Weapon Heavy EM Pulse Gun Energy Gun Heavy EM Pulse Gun Ballistic Gun Light Assault Rifle Launcher Mini Grenade Launcher Build | -11 -10 -10 ------- Run | Yrd Mat Sub Slots Evolved . | . . . Power . | . . . Propulsion . | . . . Utility . | . . . Weapon . | . . . Parts Attached 27 | 7 11 9 Power 3 | 1 2 . Engine 2 | 1 1 . Core 1 | . 1 . Reactor . | . . . Propulsion 4 | 2 . 2 Treads 4 | 2 . 2 Leg . | . . . Wheel . | . . . Hover . | . . . Flight . | . . . Utility 8 | 2 4 2 Device 3 | 1 2 . Storage 2 | 1 1 . Processor . | . . . Hackware 1 | . 1 . Protection 2 | . . 2 Artifact . | . . . Weapon 12 | 2 5 5 Energy Gun 5 | 1 4 . Energy Cannon . | . . . Ballistic Gun 5 | 1 1 3 Ballistic Cannon . | . . . Launcher 2 | . . 2 Special Weapon . | . . . Impact Weapon . | . . . Slashing Weapon . | . . . Piercing Weapon . | . . . Special Melee Weapon . | . . . Unidentified Prototypes . | . . . Corrupted Parts 2 | . 2 . System Corruption 8 | . 8 . Parts Lost 8 | . 3 5 Power 1 | . 1 . Propulsion 2 | . . 2 Utility 1 | . . 1 Weapon 4 | . 2 2 Highest Loss Streak 2 | . 2 2 To Critical Strikes . | . . . Average Backups 10 | . 10 14 Power . | . . . Propulsion . | . . . Utility 6 | . 6 6 Weapon 3 | . 2 6 Tool/Special . | . . . Unused Backups 16 | . 7 9 Power . | . . . Propulsion 1 | . . 1 Utility 10 | . 5 5 Weapon 4 | . 2 2 Tool/Special 1 | . . 1 Average Slot Usage (%) 98 | . 99 98 Engine 9 | . 7 14 Core 4 | . 6 . Treads 27 | . 28 26 Device 8 | . 8 8 Storage 14 | . 14 14 Hackware 3 | . 5 . Protection 1 | . . 5 Energy Gun 13 | . 15 7 Ballistic Gun 11 | . 11 11 Launcher 2 | . . 8 Peak Build Rating 14 | 9 14 13 Average Rating 11 | 7 11 11 On Entrance 7 | . 9 13 Naked Turns . | . . . Heaviest Build 36 | 13 32 36 Greatest Support 40 | 40 40 40 Greatest Overweight (x) 1 | . . 1 Average Overweight (x) . | . . . Largest Inventory Capacity 15 | 8 15 15 Average Capacity 12 | 7 12 15 Most Carried 15 | 2 15 15 Average Carried 10 | . 10 14 Final Capacity 15 | 8 15 15 Final Carried 15 | 2 15 14 Class Distribution -------------------- 100% | Mutant Dominant Class ---------------- Mutant | -10/Materials Mutant | -10/Subcaves Resources | -11 -10 -10 ----------- Run | Yrd Mat Sub Matter Collected 826 | 342 342 142 Remotely . | . . . Salvage Created 1377 | 162 1167 48 Parts 93 | 13 68 12 Haulers Intercepted 2 | . 2 . Recyclers Shooed . | . . . Parts Field Recycled . | . . . Retrieved Matter . | . . . Parts Self-Destructed 3 | . . 3 Prevented . | . . . Kills | -11 -10 -10 ------- Run | Yrd Mat Sub Combat Hostiles Destroyed 24 | . 16 8 Guns 13 | . 13 . AOE 10 | . 2 8 Classes Destroyed 10 | 3 6 1 Worker 5 | 2 3 . Builder 2 | . 2 . Tunneler 4 | 3 1 . Hauler 2 | . 2 . Recycler 4 | 1 3 . Operator 1 | . 1 . Watcher 2 | . 2 . Swarmer 7 | . 3 4 Grunt 13 | . 13 . Subdweller 4 | . . 4 Best Kill Streak 4 | 3 4 4 Combat Bots Only 4 | . 3 4 Max Kills in Single Turn 3 | 1 2 3 Gunslinging 1 | . 1 . Exploded 3 | . 1 3 Melee . | . . . Uniques/NPCs Destroyed . | . . . Combat | -11 -10 -10 -------- Run | Yrd Mat Sub Hostile Shots Fired 144 | . 83 61 Missed 50 | . 27 23 Hits 94 | . 56 38 Projectile 94 | . 56 38 Critical Strikes 2 | . 2 . Damage Taken 1296 | . 769 527 Core 261 | . 127 134 Absorbed by Shields . | . . . Core Remaining (%) 100 | 100 . . Volleys Fired 137 | 23 89 25 Largest 2 | 2 2 2 Hottest 90 | 60 90 75 Shots Fired 257 | 42 176 39 Gun 236 | 42 176 18 Cannon . | . . . Launcher 21 | . . 21 Special . | . . . Kinetic 108 | 23 75 10 Thermal 39 | 19 20 . Explosive 21 | . . 21 Electromagnetic 89 | . 81 8 Robot Hit Streak 21 | 6 21 11 Robot Miss Streak 3 | 3 3 1 Penetration Max . | . . . Secondary Targets 3 | . 3 . Max Gunslinging Chain 1 | . 1 . Shots Hit Robots 160 | 28 114 18 Core Hits 69 | 10 46 13 Critical Kills . | . . . Critical Parts Destroyed 2 | 1 1 . Critical Strikes 4 | 1 3 . Destroy 2 | 1 1 . Corrupt 2 | . 2 . Melee Attacks . | . . . Impact . | . . . Slashing . | . . . Piercing . | . . . Sneak Attacks . | . . . Combat Hostiles . | . . . Follow-up Attacks . | . . . Damage Inflicted 3012 | 263 1813 936 Guns 1881 | 263 1515 103 Cannons . | . . . Explosions 1131 | . 298 833 Melee . | . . . Ramming . | . . . Kinetic 529 | 109 357 63 Thermal 650 | 154 496 . Explosive 833 | . . 833 Electromagnetic 1000 | . 960 40 Impact . | . . . Slashing . | . . . Piercing . | . . . Highest Corruption 8 | . 8 8 Average Corruption 7 | . 6 8 Corruption Purged . | . . . Corruption Blocked . | . . . Effects 47 | . 26 21 Message Errors 10 | . 6 4 Matter Fused 8 | . 6 2 Heat Flow Errors 7 | . 3 4 Energy Discharges 8 | . 5 3 Data Loss (minor) 7 | . 2 5 Data Loss (major) 1 | . 1 . Misfires 3 | . 2 1 Alerts 1 | . . 1 Weapon Failures 2 | . 1 1 Overload Shots . | . . . Overflow Damage 17 | . 6 11 Projectiles . | . . . Explosions 17 | . 6 11 Melee . | . . . Knockbacks . | . . . Impact . | . . . Kinetic . | . . . Secondary . | . . . Self-Inflicted Damage 215 | . 116 99 Shots 6 | . 3 3 Rammed . | . . . Targets Rammed . | . . . Kicked . | . . . Crushed . | . . . Highest Temperature 261 | 40 244 261 Average Temperature 62 | 24 66 114 Received Heat Transfer 519 | . 375 144 Siege Activations . | . . . Martial Activations . | . . . Shielding Activations . | . . . Robots Disrupted . | . . . Combat Hostiles . | . . . Robots Corrupted 1 | . 1 . Combat Hostiles 1 | . 1 . Parts Fried 4 | . 4 . Impact Corruptions . | . . . Robots Melted . | . . . Combat Hostiles . | . . . Parts Melted 3 | . 3 . Heat Transferred 1150 | 350 800 . Parts Sabotaged . | . . . Parts Stolen . | . . . Parts Stripped . | . . . Power Chain Reactions 4 | . 4 . Alert | -11 -10 -10 ------- Run | Yrd Mat Sub Maximum Alert Level 1 | . 1 . Low Security (%) 96 | 100 96 . Level 1 3 | . 3 . Level 2 . | . . . Level 3 . | . . . Level 4 . | . . . Level 5 . | . . . High Security . | . . . Max Security . | . . . Peak Influence 211 | 15 211 . Initial . | . . . Average 60 | 2 66 . Influence Increases 812 | 30 597 185 Destroy 0b10 Robot/C 400 | . 320 80 Destroy 0b10 Robot/NC 100 | 30 70 . Destroy Leader 78 | . 78 . Successful Hack 12 | . 12 . Select Force Hacks 30 | . 30 . Disable Machine 75 | . 75 . Destroy Structure 12 | . 12 . Lose Combat Pursuer 105 | . . 105 Influence Decreases 643 | 30 421 192 Entered New Map 85 | . . 85 Time Decay 508 | 30 391 87 Lost Part 50 | . 30 20 Squads Dispatched 3 | . 3 . Investigation 2 | . 2 . Extermination . | . . . Reinforcement 1 | . 1 . Assault . | . . . Garrison . | . . . Intercept . | . . . Searches Triggered . | . . . Construction Impeded . | . . . Haulers Reinforced . | . . . Active Scanning Responses . | . . . Cargo Convoy Interrupts . | . . . Stealth | -11 -10 -10 --------- Run | Yrd Mat Sub Distress Signals . | . . . Communications Jammed . | . . . Distress Signals . | . . . Times Spotted 35 | . 22 13 Peak Tracking Total 6 | . 3 6 Tactical Retreats 2 | . . 2 Traps | -11 -10 -10 ------- Run | Yrd Mat Sub Traps Triggered 1 | . 1 . Indirectly . | . . . Trap Hack Attempts . | . . . Triggered . | . . . Disarmed 4 | . 4 . Reprogrammed . | . . . Reused . | . . . Traps Extracted . | . . . Installed . | . . . Triggered . | . . . Machines | -11 -10 -10 ---------- Run | Yrd Mat Sub Machines Disabled 9 | . 5 4 Max in Single Turn 2 | . 1 2 Machines Repaired . | . . . Machines Dismantled . | . . . Machines Sabotaged . | . . . Overloaded Fab Kills . | . . . Hacking | -11 -10 -10 --------- Run | Yrd Mat Sub Machines Accessed 7 | . 7 . Terminals 6 | . 6 . Fabricators . | . . . Repair Stations . | . . . Recycling Units 1 | . 1 . Scanalyzers . | . . . Garrison Access . | . . . Total Hacks 27 | . 27 . Successful 16 | . 16 . Failed 10 | . 10 . Catastrophic . | . . . Database Lockouts 1 | . 1 . Manual 24 | . 24 . Terminals 25 | . 25 . Fabricators . | . . . Repair Stations . | . . . Recycling Units 2 | . 2 . Scanalyzers . | . . . Garrison Access . | . . . Terminal Hacks 8 | . 8 . Robot Analysis 5 | . 5 . Prototype ID Bank 1 | . 1 . Terminal Index 1 | . 1 . Disarm Traps 1 | . 1 . Fabricator Hacks . | . . . Repair Station Hacks . | . . . Recycling Unit Hacks 1 | . 1 . Report Inventory 1 | . 1 . Scanalyzer . | . . . Garrison Access Hacks . | . . . Unauthorized Hacks 7 | . 7 . Terminals 6 | . 6 . Botnet 6 | . 6 . Fabricators . | . . . Repair Stations . | . . . Recycling Units 1 | . 1 . Tunnel 1 | . 1 . Scanalyzers . | . . . Garrison Access . | . . . Data Cores Recovered . | . . . Used . | . . . Hacking Detections 6 | . 6 . Full Trace Events 1 | . 1 . Feedback Events . | . . . Feedback Blocked . | . . . Robot Schematics Acquired . | . . . Robots Built . | . . . Authchips . | . . . Time . | . . . Total Robot Build Rating . | . . . Part Schematics Acquired . | . . . Parts Built . | . . . Authchips . | . . . Time . | . . . Total Part Build Rating . | . . . Parts Repaired . | . . . Time . | . . . Parts Recycled . | . . . Recycled Matter . | . . . Retrieved Matter . | . . . Retrieved Components . | . . . Parts Scanalyzed . | . . . Part Schematics Acquired . | . . . Parts Damaged . | . . . Bothacking | -11 -10 -10 ------------ Run | Yrd Mat Sub Used RIF Installer . | . . . Robots Hacked . | . . . Non-combat . | . . . Combat . | . . . Robot Hacks Applied . | . . . Relay Couplers Released . | . . . Fabnet Peak Effective % . | . . . Robots Rewired . | . . . Allies Hacked . | . . . Hacks Repelled . | . . . Allies | -11 -10 -10 -------- Run | Yrd Mat Sub Total Allies . | . . . Largest Group . | . . . Highest-Rated Group . | . . . Highest-Rated Ally . | . . . Total Orders . | . . . Ally Attacks . | . . . Total Damage . | . . . Kills . | . . . Allies Corrupted . | . . . Allies Melted . | . . . Intel | -11 -10 -10 ------- Run | Yrd Mat Sub Active Infowar (turns) 511 | 117 86 308 Terrain 511 | 117 86 308 Robot Analysis Total 5 | . 5 . Derelict Logs Recovered . | . . . Drone Launches . | . . . Drone Recoveries . | . . . Exploration | -11 -10 -10 ------------- Run | Yrd Mat Sub Turns Passed 2133 | 156 1464 513 Spaces Moved 1026 | 54 713 259 Core 2 | 2 . . Treads 1024 | 52 713 259 Legs . | . . . Wheels . | . . . Hover . | . . . Flight . | . . . Fastest Speed 50 | 50 160 160 Average Speed 160 | 155 160 162 Slowest Speed 240 | 160 160 240 Overloaded Moves . | . . . Propulsion Burnouts . | . . . Robots Hopped . | . . . Potential Cave-ins . | . . . Cave-ins Triggered . | . . . Exploration Rate (%) 40 | 6 92 23 Regions Visited 2 Branch Regions 1 Pre-discovered Areas 2 | . 1 1 Known Exits Taken . | . . . Unknown Exits Taken 2 | 1 1 . Scrap Searched . | . . . Spaces Dug . | . . . Terrain Destroyed 111 | . 10 101 Melee . | . . . Projectile . | . . . AOE 111 | . 10 101 Terrain Rammed . | . . . Walls Destroyed . | . . . Machines Disabled . | . . . Actions | -11 -10 -10 --------- Run | Yrd Mat Sub Total 1277 | 85 882 310 Wait 31 | . 29 2 Move 1024 | 53 712 259 Hop . | . . . Pick Up 31 | 2 23 6 Fast Attach 9 | 7 2 . Attach 8 | . 2 6 Detach 2 | . 1 1 Swap 20 | . 11 9 Drop 15 | . 13 2 Fire 137 | 23 89 25 Melee . | . . . Ram . | . . . Kick . | . . . Crush . | . . . Escape Stasis . | . . . Rewire . | . . . Trap . | . . . Miscellaneous . | . . . Route ------- -11/Scrapyard -10/Materials (discovered 5 exits: [*Mat x2] / [*Min x2] / [*Sub]) -10/Subcaves (discovered 2 exits: [*Mat] / [*Rec]) History --------- Turn | Location | Event 31 | -11/Scrapyard | Discovered new exit (range 15) 157 | -11/Scrapyard | Entered Materials 313 | -10/Materials | Build established: Mutant 556 | -10/Materials | Discovered new exit (range 8) 678 | -10/Materials | Discovered new exit (range 5) 1177 | -10/Materials | Central database locked down 1185 | -10/Materials | Discovered new exit (range 15) 1327 | -10/Materials | Core integrity fell below 50% 1387 | -10/Materials | Discovered new exit (range 16) 1608 | -10/Materials | Discovered new exit (range 9) 1621 | -10/Materials | Entered Subcaves 1834 | -10/Subcaves | Learned location of Zion (-7) 1834 | -10/Subcaves | Met a Zionite searching for "candidates" 2077 | -10/Subcaves | Discovered new exit (range 7) 2078 | -10/Subcaves | Shifting Twisted Machinery released Spk. Treads 2079 | -10/Subcaves | Shifting Twisted Machinery released Sub. Power Source 2091 | -10/Subcaves | Core integrity fell below 20% 2104 | -10/Subcaves | Discovered new exit (range 13) 2134 | -10/Subcaves | Destroyed by 8D-63K(R) with Subdweller Machine Gun Last Messages --------------- to launch. 02091_ S-10 Pest springs to life. 02093_ Dropped Med. Matter Pod. 02094_ Extracted 100 matter. 02094_ S-10 Pest destroyed. 02094_ Machine disabled. 02094_ S-10 Pest destroyed. 02094_ Machine disabled. 02094_ S-10 Pest destroyed. 02098_ Subatomizers dissect the Lgt. Assault Rifle. 02098_ S-10 Pest destroyed. 02099_ Flight Unit fries itself beyond repair. 02104_ Machine disabled. 02104_ EXIT=FOUND 02105_ Lgt. Assault Rifle fries itself beyond repair. 02108_ Lgt. Ion Engine fries itself beyond repair. 02131_ System corrupted: FCS attempts to trigger Mni. Grenade Launcher. 02131_ System corrupted: Mni. Grenade Launcher misfires. Map ----- +----------------------------------------------------+ | ?????????????????????????????????????????????????? | | ?????????????????????????????????????????????????? | | ?????????????????????????????????????????????????? | | ?????????????????????????????????????????????????? | | ?????????????????????????????????????????????????? | | ?????????????????????????????????????????????????? | | ?????????????????????????????????????????????????? | | ?????????????????????????????????????????????????? | | ?????????????????????????????????????????????????? | | ?????????????????????????????????????????????????? | | ?????????????????????????????????????????????????? | | ?????????????????????#?????# ???????????????????? | | ???????????????????### ???#% ???????????????????? | | ??????????????????? ??? ???????????????????? | | ???????????????????? ??? #???????????????????? | | ??????####?????????? ### #???????????????????? | | ?????## ?????##???R #???????????????????? | | ?????? ????? #??? % #?? ????????????????? | | ?????? ??## ???? ## ????????????????? | | ???????# ?## #???? ????????????????? | | ??# #????# ## ?????? ?????????????????? | | ??# ###?# #?????? ??????????????????? | | ??# #?# #??????# ????????????????????? | | ??# ### ####???# #?????????????????????? | | #????# ##### #?????????????????????? | | ?????# @ #?????????????????????? | | ?????## ### ## #??????##?????????????? | | ??????#### #### ##????#<###???????????? | | ??##### #??# #???" " ""#?????????? | | ### # #??# #??? #?????????? | | #??# #?? #????????? | | ##??# ##? #????????? | | # # #?? # * #????????? | | ## ### ##?# ## #?????????? | | ?# ##?######??# #### ##????????? | | ?### #??????????# ### #????????? | | #### ##????????# # " "?????????? | | ## #???????# # # ## * #???????????? | | ###?????# #### ## = #???????????? | | ##???# ???# ! < "##???????????? | | #???# ??# """"""" "??????????? | | ####???# ?# """""" ? ??????????? | | ##?????# ?# """## ??????????????? | | #??????# ?# ""##????????????????? | | #?????? ?## ##?????????????????? | | ###?????# ###????# ## ###??????????????????? | | ####????????#???????####?####????????????????????? | | ?????????????????????????????????????????????????? | | ?????????????????????????????????????????????????? | | ?????????????????????????????????????????????????? | +----------------------------------------------------+ Best States ------------- Heat Dissipation 39 Energy Generation 14 Energy Capacity 250 Matter Stores 300 Matter Capacity 300 Sight Range 16 Terrain Scan Range 16 Terrain Scan Density 10 Armor Coverage 150 Evasion (%) 40 Recoil Reduction 2 Offensive Hacking 10 Item Schematics ----------------- None Robot Schematics ------------------ None Fabricated ------------ Nothing Repaired ---------- Nothing Alien Tech Used ----------------- None Achievements -------------- None Challenges ------------ None Game ------ Seed IonicMolecularManipulator Manual? 0 Play Time 00:11:52 Cumulative 283.9 hours Start 2025.06.10 @ 11:11:21 End 2025.06.10 @ 11:22:43 Sessions 1 Manual Loads 0 Difficulty Rogue Special Mode None Game No. 172 Rogue 172 Adventurer 0 Explorer 0 Win Type - Total 3 Types 1/0/1/1/0/0/0/0/0/0 Lore% 80 Gallery% 68 Achievement% 63 Wizard Run 0 Options --------- Layout 2 ASCII 0 Keyboard 1 Movement Vi Keybinds 0 Fullscreen 1 Font 16/Tamsyn Map View 55x47 Zoom Use 0% Tactical HUD 1 Map Filters NONE Filters NONE Steam 0 RUN: 8a95a97d-1d59-4f3d-8024-3c28da1c0765